bitfinex/quotes_SOLUSD_20250228
["timestamp","ask_amount","ask_price","bid_price","bid_amount"]
[1740718150943,43.48232704,129.01,128.92,20.0]
[1740718151653,43.48232704,129.01,128.96,20.0]
[1740718151852,174.18232704,129.05,128.96,20.0]
[1740718152443,174.18232704,129.05,129.0,20.0]
[1740718152634,8.905975,129.06,129.0,20.0]
[1740718152945,2.353275,129.06,129.0,20.0]
[1740718154328,43.48232704,129.05,128.95,0.14216157]
[1740718154849,43.48232704,129.04,128.97,20.0]
[1740718155050,43.48232704,129.04,128.94,10.5]
[1740718155241,43.48232704,129.03,128.94,10.5]
[1740718155937,49.99002704,129.02,128.91,10.5]
[1740718156139,43.48232704,129.01,128.91,10.5]
[1740718156360,43.48232704,129.01,128.89,23.94317266]
[1740718156851,43.62448861,129.0,128.89,23.94317266]
[1740718157239,2.50186157,128.98,128.89,23.94317266]
[1740718157450,0.14216157,128.96,128.86,0.063]
[1740718157855,38.62448861,128.97,128.86,20.063]
[1740718158054,46.37818861,128.97,128.86,0.063]
[1740718158353,10.5,128.96,128.86,0.063]
[1740718158866,57.27413747,128.95,128.86,0.063]
[1740718159054,18.64964886,128.93,128.86,0.063]
[1740718159562,2.1533,128.9,128.84,0.063]
[1740718159856,38.62448861,128.89,128.84,0.063]
[1740718160056,38.76665018,128.88,128.84,0.063]
[1740718160364,38.76665018,128.88,128.83,0.063]
[1740718160553,38.62448861,128.88,128.83,0.063]
[1740718161241,38.62448861,128.87,128.83,0.063]
[1740718161559,38.62448861,128.86,128.83,0.063]
[1740718162849,38.62448861,128.85,128.82,0.063]
[1740718164638,2.1533,128.9,128.82,0.063]
[1740718164639,40.77778861,128.9,128.82,0.063]
[1740718164964,40.77778861,128.9,128.84,16.0]
[1740718165137,47.03832144,128.9,128.84,16.0]
[1740718165335,47.03832144,128.9,128.82,0.063]
[1740718165765,54.79632144,128.9,128.82,0.063]
[1740718165968,47.03832144,128.9,128.82,0.063]
[1740718166481,54.79642144,128.9,128.82,0.063]
[1740718166969,38.62448861,128.89,128.82,0.063]
[1740718167267,38.62448861,128.88,128.82,0.063]
[1740718167854,0.14216157,128.85,128.82,0.063]
[1740718168170,38.62448861,128.84,128.82,0.063]
[1740718168345,6.57236157,128.85,128.82,0.063]
[1740718168346,174.22448861,128.83,128.82,0.063]
[1740718169576,38.62448861,128.83,128.82,0.063]
[1740718170459,46.38658861,128.83,128.82,0.063]
[1740718170660,7.7621,128.83,128.82,0.063]
[1740718170859,7.7617,128.84,128.82,0.063]
[1740718171385,14.1913,128.85,128.82,0.063]
[1740718172563,6.4302,128.85,128.82,0.063]
[1740718172758,10.52,128.86,128.82,0.063]
[1740718172958,6.3077,128.89,128.82,0.063]
[1740718173461,8.41383283,128.9,128.82,0.063]
[1740718173663,6.26053283,128.9,128.82,0.063]
[1740718173962,130.74,128.91,128.85,20.0]
[1740718174344,138.4974,128.91,128.82,0.063]
[1740718175267,130.74,128.91,128.82,0.063]
[1740718175480,136.89910407,128.91,128.85,20.0]
[1740718175972,6.15910407,128.91,128.86,20.0]
[1740718176179,82.8,128.93,128.86,20.0]
[1740718176867,90.5563,128.93,128.86,20.0]
[1740718177058,96.62452198,128.93,128.86,20.0]
[1740718177261,82.8,128.92,128.82,0.063]
[1740718177461,82.8,128.91,128.82,0.063]
[1740718178263,82.8,128.91,128.83,20.0]
[1740718179551,6.06822198,128.93,128.87,20.0]
[1740718179759,85.0512,128.95,128.88,20.0]
[1740718180151,98.99637173,128.95,128.88,20.0]
[1740718180653,88.99007173,128.95,128.88,20.0]
[1740718181288,96.74507173,128.95,128.88,20.0]
[1740718181883,82.8,128.94,128.85,10.5]
[1740718182185,82.8,128.93,128.83,20.0]
[1740718182355,0.063,128.91,128.83,20.0]
[1740718182680,7.7585,128.89,128.82,0.063]
[1740718182864,82.8,128.88,128.82,0.063]
[1740718184155,0.063,128.91,128.85,20.0]
[1740718184664,0.063,128.91,128.87,20.0]
[1740718186979,0.063,128.91,128.84,10.5]
[1740718189379,0.063,128.91,128.87,20.0]
[1740718192287,0.063,128.91,128.89,20.0]
[1740718192677,0.063,128.91,128.9,20.0]
[1740718193477,0.063,128.91,128.89,20.0]
[1740718193683,0.063,128.91,128.82,8.3932]
[1740718193864,0.063,128.91,128.82,6.1271]
[1740718194067,0.063,128.91,128.82,0.063]
[1740718194888,0.063,128.91,128.82,20.063]
[1740718195193,82.8,128.9,128.82,0.063]
[1740718195389,90.70066157,128.89,128.82,0.063]
[1740718195765,0.14216157,128.87,128.82,0.063]
[1740718196090,82.8,128.86,128.82,0.063]
[1740718196270,81.8,128.86,128.82,0.063]
[1740718196986,0.14216157,128.85,128.82,0.063]
[1740718197289,81.8,128.86,128.82,0.063]
[1740718197486,0.14216157,128.83,128.82,0.063]
[1740718197665,2.1713,128.83,128.82,0.063]
[1740718198770,9.9334,128.83,128.82,0.063]
[1740718199180,2.1713,128.83,128.82,0.063]
[1740718199486,7.7597,128.87,128.82,0.063]
[1740718200863,10.0102,128.88,128.82,0.063]
[1740718202785,18.79181043,128.85,128.71,10.5]
[1740718203487,0.14216157,128.83,128.7,0.063]
[1740718203683,0.14216157,128.83,128.73,20.063]
[1740718203990,25.31041043,128.81,128.73,0.063]
[1740718204166,0.14216157,128.79,128.7,0.063]
[1740718204769,82.8,128.78,128.7,0.063]
[1740718204974,82.8,128.77,128.72,20.0]
[1740718205382,82.8,128.77,128.7,0.063]
[1740718205580,82.8,128.77,128.7,18.71264886]
[1740718205898,82.8,128.77,128.73,20.0]
[1740718207383,160.7829,128.85,128.7,0.063]
[1740718207384,82.8,128.76,128.7,0.063]
[1740718207582,82.8,128.75,128.72,20.0]
[1740718207990,82.8,128.75,128.7,0.063]
[1740718208594,82.8,128.75,128.72,20.0]
[1740718208911,82.8,128.74,128.72,20.0]
[1740718209282,82.8,128.73,128.7,0.063]
[1740718209473,6.27316667,128.75,128.7,20.063]
[1740718209674,82.8,128.79,128.7,20.063]
[1740718209873,82.8,128.78,128.7,20.063]
[1740718210390,82.8,128.78,128.7,0.063]
[1740718210576,82.8,128.77,128.7,0.063]
[1740718211493,82.8,128.77,128.7,20.063]
[1740718211697,82.8,128.76,128.7,20.063]
[1740718212193,82.8,128.78,128.74,20.0]
[1740718212400,82.8,128.84,128.78,20.0]
[1740718212577,82.8,128.83,128.78,20.0]
[1740718212776,82.8,128.82,128.73,10.5]
[1740718212979,82.8,128.81,128.7,6.3267]
[1740718213180,82.8,128.8,128.7,6.3267]
[1740718213593,82.8,128.8,128.73,20.0]
[1740718213799,82.8,128.79,128.73,20.0]
[1740718214182,82.8,128.79,128.74,20.0]
[1740718214881,82.8,128.79,128.78,20.0]
[1740718215091,88.93713442,128.83,128.78,20.0]
[1740718215405,82.8,128.82,128.74,10.5]
[1740718215697,82.8,128.87,128.78,20.0]
[1740718216000,82.8,128.84,128.78,20.0]
[1740718216580,82.8,128.83,128.74,10.5]
[1740718216779,82.8,128.82,128.74,10.5]
[1740718216987,82.8,128.81,128.69,10.53]
[1740718217188,82.8,128.8,128.71,18.64964886]
[1740718217389,82.8,128.8,128.69,10.53]
[1740718217689,82.8,128.79,128.73,20.0]
[1740718217884,82.8,128.78,128.73,20.0]
[1740718218089,82.8,128.78,128.75,20.0]
[1740718219192,82.8,128.78,128.73,20.0]
[1740718219399,82.8,128.77,128.73,20.0]
[1740718220716,82.8,128.76,128.7,6.3267]
[1740718221510,82.8,128.76,128.73,20.0]
[1740718221702,82.8,128.75,128.73,20.0]
[1740718221895,82.8,128.74,128.7,6.3267]
[1740718222093,82.8,128.74,128.7,0.063]
[1740718222614,82.8,128.74,128.71,20.0]
[1740718223395,82.8,128.81,128.75,20.0]
[1740718224817,82.8,128.8,128.75,20.0]
[1740718226704,82.8,128.8,128.76,20.0]
[1740718226901,82.8,128.85,128.8,20.0]
[1740718227100,82.8,128.84,128.8,20.0]
[1740718227324,82.8,128.83,128.75,1.63014023]
[1740718227531,82.8,128.82,128.72,10.48]
[1740718227830,82.8,128.81,128.74,0.14216157]
[1740718228005,82.8,128.81,128.76,20.0]
[1740718228201,82.8,128.81,128.8,20.0]
[1740718228398,82.8,128.87,128.8,20.0]
[1740718228622,82.8,128.86,128.81,20.0]
[1740718229344,6.35253348,128.88,128.83,20.0]
[1740718229625,0.063,128.88,128.87,20.0]
[1740718230712,0.063,128.88,128.87,38.64964886]
[1740718231318,0.063,128.91,128.87,38.64964886]
[1740718231494,0.063,128.91,128.9,20.0]
[1740718231702,0.063,128.91,128.87,20.0]
[1740718235015,82.613,128.94,128.91,20.0]
[1740718235326,82.613,128.93,128.91,20.0]
[1740718237730,82.676,128.97,128.95,20.0]
[1740718237929,88.96527124,128.97,128.95,20.0]
[1740718238224,0.063,128.97,128.95,20.0]
[1740718238603,0.063,128.97,128.93,0.14216157]
[1740718238807,0.063,128.97,128.96,18.79181043]
[1740718239007,0.063,128.97,128.96,29.27181043]
[1740718239915,0.063,129.01,129.0,18.64964886]
[1740718240219,0.063,129.01,129.0,0.14216157]
[1740718241028,0.063,129.01,128.99,38.64964886]
[1740718241219,0.063,129.01,128.99,20.0]
[1740718241525,0.063,129.01,128.96,16.8527]
[1740718241835,0.063,129.01,128.96,10.48]
[1740718242216,82.206,129.03,128.97,18.64964886]
[1740718242416,82.206,129.03,128.98,0.14216157]
[1740718242814,82.206,129.03,129.0,20.0]
[1740718246730,0.063,129.04,129.03,20.0]
[1740718247414,0.063,129.04,129.01,38.64964886]
[1740718248829,0.063,129.04,128.97,0.14216157]
[1740718249228,0.063,129.04,128.95,6.1955]
[1740718249426,0.063,129.04,128.95,10.46]
[1740718249627,0.063,129.04,128.98,20.0]
[1740718249820,0.063,129.04,128.95,10.46]
[1740718250422,0.063,129.04,129.0,20.0]
[1740718250839,0.063,129.04,128.95,10.46]
[1740718251221,0.063,129.04,128.99,20.0]
[1740718252028,0.063,129.04,129.01,0.14216157]
[1740718252224,0.063,129.04,129.03,38.79181043]
[1740718253026,0.063,129.04,129.03,20.0]
[1740718254042,6.5433,129.08,129.04,20.0]
[1740718254242,6.5433,129.08,129.04,8.63]
[1740718255039,6.5433,129.08,129.01,10.46]
[1740718256950,6.5433,129.08,129.04,20.0]
[1740718258037,82.206,129.07,129.0,0.03]
[1740718258345,82.206,129.06,129.0,0.03]
[1740718259341,82.206,129.05,129.0,0.03]
[1740718259543,84.3937,129.04,129.0,0.03]
[1740718259733,82.206,129.03,129.0,0.03]
[1740718259928,82.206,129.02,129.0,0.03]
[1740718260131,6.6441,129.0,128.91,10.44]
[1740718260331,82.206,128.99,128.86,10.44]
[1740718260534,2.1071,128.97,128.84,47.88634533]
[1740718260843,82.206,128.96,128.84,47.88634533]
[1740718261027,82.206,128.95,128.84,47.88634533]
[1740718261428,82.206,128.94,128.84,47.88634533]
[1740718261947,82.206,128.94,128.87,20.0]
[1740718262148,82.206,128.93,128.84,47.88634533]
[1740718262441,82.206,128.92,128.87,20.0]
[1740718262644,82.206,128.91,128.84,47.88634533]
[1740718262839,2.1075,128.89,128.79,10.44]
[1740718263032,82.206,128.88,128.75,6.249]
[1740718263239,82.206,128.87,128.75,16.689]
[1740718263558,88.47936379,128.87,128.75,16.689]
[1740718263748,82.206,128.86,128.75,10.44]
[1740718264249,82.206,128.86,128.74,0.03]
[1740718264250,82.206,128.85,128.74,0.03]
[1740718264448,82.206,128.84,128.74,0.03]
[1740718265038,82.206,128.84,128.75,20.0]
[1740718266032,82.206,128.84,128.74,0.03]
[1740718266445,82.206,128.84,128.79,20.0]
[1740718266748,82.206,128.83,128.74,0.03]
[1740718266929,6.5554,128.81,128.75,0.03]
[1740718267447,2.0779,128.8,128.75,0.03]
[1740718267657,82.206,128.79,128.75,0.03]
[1740718267965,82.206,128.78,128.69,0.03]
[1740718268149,82.206,128.77,128.65,0.03]
[1740718268335,82.34816157,128.76,128.65,0.03]
[1740718268660,90.11476157,128.76,128.65,0.03]
[1740718269037,82.206,128.75,128.65,0.03]
[1740718269344,82.34816157,128.74,128.65,0.03]
[1740718269546,6.2776,128.71,128.65,0.03]
[1740718269859,84.4669,128.7,128.65,0.03]
[1740718270854,82.206,128.69,128.65,0.03]
[1740718271057,82.206,128.69,128.6,0.063]
[1740718271261,82.206,128.68,128.6,0.063]
[1740718271760,82.206,128.67,128.63,20.0]
[1740718272134,82.206,128.67,128.61,10.46]
[1740718272459,82.206,128.66,128.6,0.063]
[1740718272665,82.206,128.65,128.62,20.0]
[1740718272876,82.206,128.69,128.62,20.0]
[1740718273043,82.206,128.68,128.62,20.0]
[1740718273248,82.206,128.68,128.6,0.063]
[1740718274484,82.206,128.67,128.6,0.063]
[1740718274788,82.206,128.66,128.6,0.063]
[1740718274953,82.206,128.65,128.6,0.063]
[1740718275378,82.206,128.64,128.6,0.063]
[1740718275746,82.206,128.63,128.6,0.063]
[1740718276081,130.94,128.69,128.6,0.063]
[1740718276082,82.206,128.62,128.6,0.063]
[1740718276260,82.206,128.61,128.6,0.063]
[1740718277061,82.206,128.68,128.6,0.063]
[1740718277258,82.206,128.67,128.6,0.063]
[1740718277659,82.206,128.66,128.6,0.063]
[1740718277860,82.206,128.65,128.6,0.063]
[1740718278168,82.206,128.64,128.6,0.063]
[1740718278385,82.206,128.63,128.6,0.063]
[1740718278576,82.206,128.62,128.49,1.63324685]
[1740718278752,90.4267,128.61,128.45,6.5018]
[1740718279070,89.9822,128.6,128.45,16.9618]
[1740718279271,82.206,128.59,128.45,16.9618]
[1740718279572,82.206,128.59,128.46,18.64964886]
[1740718279752,82.206,128.58,128.46,18.64964886]
[1740718279952,82.206,128.57,128.53,20.0]
[1740718280365,82.206,128.6,128.53,20.0]
[1740718280602,82.206,128.59,128.53,20.0]
[1740718281671,82.206,128.58,128.46,0.14216157]
[1740718281981,82.206,128.57,128.49,20.0]
[1740718282155,82.206,128.56,128.49,20.0]
[1740718282571,82.206,128.56,128.46,18.64964886]
[1740718282867,82.206,128.55,128.46,10.60216157]
[1740718283070,82.206,128.55,128.49,20.0]
[1740718283265,82.206,128.55,128.53,20.0]
[1740718283571,80.4472,128.59,128.53,20.0]
[1740718284185,80.2304,128.59,128.57,20.0]
[1740718284485,53.09855439,128.61,128.52,10.46]
[1740718284688,53.09855439,128.6,128.47,10.46]
[1740718284889,2.2175,128.58,128.44,1.63387664]
[1740718285071,59.11545439,128.57,128.43,10.523]
[1740718285266,53.09855439,128.56,128.43,0.063]
[1740718285471,53.09855439,128.55,128.43,0.063]
[1740718285786,53.09855439,128.54,128.43,0.063]
[1740718285983,53.09855439,128.53,128.43,0.063]
[1740718286171,53.09855439,128.52,128.43,0.063]
[1740718286371,53.09855439,128.51,128.43,0.063]
[1740718286575,0.14216157,128.49,128.43,0.03847674]
[1740718286887,53.09855439,128.48,128.43,0.03847674]
[1740718287057,53.09855439,128.47,128.43,0.03847674]
[1740718287264,53.09855439,128.46,128.43,0.03847674]
[1740718287464,53.09855439,128.45,128.35,10.46]
[1740718287679,53.09855439,128.44,128.35,10.46]
[1740718288089,59.33147612,128.44,128.38,20.0]
[1740718288397,53.09855439,128.43,128.35,10.46]
[1740718288564,53.09855439,128.47,128.35,10.46]
[1740718288759,53.09855439,128.46,128.38,20.0]
[1740718288962,59.28212286,128.46,128.39,20.14216157]
[1740718289184,59.28212286,128.46,128.39,20.0]
[1740718290292,59.28212286,128.46,128.37,0.14216157]
[1740718290868,59.28212286,128.46,128.39,20.0]
[1740718291085,53.09855439,128.46,128.43,20.0]
[1740718291794,59.21153842,128.46,128.39,20.0]
[1740718291975,53.09855439,128.45,128.39,20.0]
[1740718292361,53.09855439,128.45,128.43,20.0]
[1740718292771,48.00835439,128.45,128.43,20.0]
[1740718292983,45.29005439,128.45,128.43,20.0]
[1740718293171,42.57175439,128.45,128.35,12.12519183]
[1740718293369,42.57175439,128.45,128.36,0.14216157]
[1740718293557,42.57175439,128.45,128.36,18.79181043]
[1740718293974,42.57175439,128.45,128.39,20.0]
[1740718294198,42.57175439,128.45,128.36,1.63520026]
[1740718294366,42.57175439,128.45,128.37,0.14216157]
[1740718294695,42.57175439,128.45,128.39,0.14216157]
[1740718294890,42.57175439,128.45,128.39,18.79181043]
[1740718295301,42.57175439,128.45,128.38,20.0]
[1740718295696,42.57175439,128.44,128.36,18.79181043]
[1740718295907,6.1694677,128.48,128.35,0.03]
[1740718295908,42.57175439,128.43,128.35,0.03]
[1740718296411,42.57175439,128.42,128.35,0.03]
[1740718297286,59.03945439,128.47,128.36,0.14216157]
[1740718297499,48.57945439,128.47,128.36,1.77726384]
[1740718297807,48.57945439,128.47,128.38,20.0]
[1740718299417,56.36365439,128.47,128.35,0.03]
[1740718299614,56.36365439,128.47,128.33,13.67964886]
[1740718299792,56.36365439,128.47,128.34,0.14216157]
[1740718300111,48.57945439,128.47,128.37,0.14216157]
[1740718300783,42.57175439,128.47,128.37,0.14216157]
[1740718301287,42.57175439,128.47,128.34,0.14216157]
[1740718301485,42.57175439,128.47,128.36,20.14216157]
[1740718301701,42.57175439,128.47,128.36,21.77733799]
[1740718302012,42.57175439,128.47,128.37,18.64964886]
[1740718302207,42.57175439,128.47,128.38,0.14216157]
[1740718302517,6.1694677,128.48,128.43,20.0]
[1740718302698,42.57175439,128.49,128.43,20.0]
[1740718304211,48.93918616,128.49,128.43,0.03]
[1740718305308,48.93918616,128.49,128.43,20.03]
[1740718305907,48.93918616,128.49,128.43,0.03]
[1740718306210,42.57175439,128.48,128.43,0.03]
[1740718308411,42.57175439,128.47,128.43,0.03]
[1740718309012,42.57175439,128.46,128.43,0.03]
[1740718309315,42.57175439,128.45,128.43,0.03]
[1740718309507,42.57175439,128.44,128.43,0.03]
[1740718309909,0.14216157,128.48,128.43,0.03]
[1740718310211,7.7833,128.48,128.43,0.03]
[1740718310510,6.36743177,128.49,128.43,0.03]
[1740718311708,6.36743177,128.49,128.43,20.03]
[1740718313016,0.063,128.49,128.43,20.03]
[1740718313592,6.28350133,128.49,128.43,20.03]
[1740718313807,6.28350133,128.49,128.43,0.03]
[1740718314411,82.8,128.48,128.43,0.03]
[1740718315215,82.8,128.48,128.43,0.17216157]
[1740718315419,75.4649918,128.48,128.44,20.0]
[1740718316012,0.063,128.49,128.44,20.0]
[1740718316411,0.063,128.49,128.45,0.14216157]
[1740718316608,0.063,128.49,128.48,20.0]
[1740718317207,0.063,128.49,128.48,38.79181043]
[1740718317690,0.063,128.49,128.48,40.42548308]
[1740718318402,75.4649918,128.59,128.53,0.14216157]
[1740718318711,0.063,128.62,128.53,38.79181043]
[1740718319124,0.063,128.62,128.59,0.14216157]
[1740718319310,0.063,128.62,128.6,20.0]
[1740718319515,0.063,128.62,128.61,0.14216157]
[1740718319701,0.063,128.62,128.61,38.79181043]
[1740718320817,18.2076,128.74,128.61,38.79181043]
[1740718320818,75.4649918,128.7,128.62,18.64964886]
[1740718321003,9.9008,128.77,128.66,20.14216157]
[1740718321004,75.4649918,128.74,128.66,20.14216157]
[1740718321203,81.62249145,128.73,128.66,20.0]
[1740718321408,75.4649918,128.72,128.67,0.14216157]
[1740718321710,75.4649918,128.76,128.71,0.14216157]
[1740718321908,75.4649918,128.75,128.72,20.0]
[1740718322318,75.4649918,128.74,128.72,20.0]
[1740718322703,75.4649918,128.73,128.69,10.44]
[1740718322920,7.7664,128.76,128.65,0.14216157]
[1740718323129,75.4649918,128.75,128.67,20.0]
[1740718324034,75.4649918,128.74,128.69,20.0]
[1740718324205,75.4649918,128.73,128.7,0.14216157]
[1740718324424,75.4649918,128.73,128.72,20.0]
[1740718324625,75.4649918,128.8,128.73,20.0]
[1740718324811,75.4649918,128.79,128.73,20.0]
[1740718325012,75.4649918,128.78,128.69,10.44]
[1740718325215,75.4649918,128.77,128.69,10.44]
[1740718325719,75.4649918,128.77,128.72,20.0]
[1740718325927,75.4649918,128.76,128.61,212.78]
[1740718326130,75.4649918,128.76,128.64,10.44]
[1740718326423,75.4649918,128.75,128.64,10.44]
[1740718326726,75.4649918,128.74,128.64,10.44]
[1740718326901,75.4649918,128.74,128.64,20.0]
[1740718327431,0.14216157,128.7,128.58,22.07771648]
[1740718327595,75.4649918,128.69,128.58,22.07771648]
[1740718327799,83.2360918,128.69,128.61,20.0]
[1740718328014,75.4649918,128.68,128.61,20.0]
[1740718328320,75.4649918,128.68,128.66,0.03]
[1740718328527,75.4649918,128.67,128.66,0.03]
[1740718330826,16.6267,128.71,128.66,0.03]
[1740718331031,82.8,128.7,128.66,0.03]
[1740718331504,82.8,128.7,128.67,20.0]
[1740718331815,10.42,128.75,128.67,20.0]
[1740718331816,82.8,128.74,128.67,20.0]
[1740718333001,82.8,128.75,128.69,20.0]
[1740718333199,82.8,128.75,128.73,20.0]
[1740718333417,82.8,128.8,128.73,20.0]
[1740718333618,82.8,128.79,128.74,0.14216157]
[1740718334001,6.17460622,128.81,128.74,38.79181043]
[1740718334335,82.8,128.84,128.79,0.14216157]
[1740718334703,82.8,128.87,128.81,0.14216157]
[1740718335833,82.8,128.93,128.83,18.79181043]
[1740718336034,82.8,128.93,128.86,20.0]
[1740718336225,6.12665829,128.92,128.86,20.0]
[1740718336548,6.12665829,128.92,128.84,0.14216157]
[1740718336713,6.12665829,128.92,128.84,20.14216157]
[1740718337111,82.8,128.93,128.84,20.14216157]
[1740718338011,6.19453568,128.92,128.84,20.14216157]
[1740718338212,82.8,128.93,128.84,20.14216157]
[1740718338411,90.5562,128.93,128.84,20.14216157]
[1740718338624,82.8,128.93,128.84,20.14216157]
[1740718338823,82.8,128.92,128.81,10.42]
[1740718339224,82.8,128.92,128.84,20.0]
[1740718339425,82.8,128.91,128.84,20.0]
[1740718340241,82.8,128.91,128.85,20.14216157]
[1740718340533,82.8,128.9,128.85,20.0]
[1740718340715,82.8,128.9,128.84,20.0]
[1740718341031,82.8,128.89,128.84,0.03]
[1740718341227,82.8,128.88,128.84,0.03]
[1740718341739,0.14216157,128.86,128.84,0.03]
[1740718342031,101.59181043,128.85,128.84,0.03]
[1740718342236,18.79181043,128.84,128.71,10.43]
[1740718342436,82.8,128.83,128.75,20.14216157]
[1740718342615,82.8,128.82,128.79,20.0]
[1740718342812,82.8,128.88,128.8,20.0]
[1740718343013,82.8,128.87,128.81,0.14216157]
[1740718343433,82.8,128.87,128.83,20.0]
[1740718343742,82.8,128.86,128.83,20.0]
[1740718344535,82.8,128.85,128.8,20.0]
[1740718344730,82.8,128.84,128.8,20.0]
[1740718346143,82.8,128.84,128.81,0.14216157]
[1740718346144,55.73188805,128.84,128.81,0.14216157]
[1740718346340,55.73188805,128.89,128.83,18.79181043]
[1740718346517,55.73188805,128.89,128.86,20.0]
[1740718347215,55.73188805,128.93,128.86,20.0]
[1740718347432,55.73188805,128.92,128.86,20.0]
[1740718347943,7.08601143,128.94,128.83,30.82082747]
[1740718347944,55.73188805,128.9,128.83,10.4]
[1740718348113,7.08601143,128.94,128.83,10.4]
[1740718348114,55.73188805,128.89,128.83,10.4]
[1740718348322,55.73188805,128.89,128.86,20.0]
[1740718348722,55.79488805,128.91,128.86,20.0]
[1740718348930,0.063,128.91,128.87,20.14216157]
[1740718350456,0.063,128.91,128.9,0.14216157]
[1740718350623,0.063,128.91,128.9,18.79181043]
[1740718350826,0.063,128.91,128.9,20.4202328]
[1740718351031,0.063,128.91,128.9,20.41998124]
[1740718351833,0.063,128.91,128.9,18.79181043]
[1740718352235,0.063,128.91,128.89,10.4]
[1740718353252,0.063,128.91,128.9,0.14216157]
[1740718354070,0.063,128.91,128.89,10.4]
[1740718354354,0.063,128.91,128.85,10.38]
[1740718354556,0.063,128.91,128.88,20.0]
[1740718354858,0.063,128.91,128.84,0.03]
[1740718355149,55.73188805,128.9,128.85,20.0]
[1740718355750,55.73188805,128.9,128.87,20.0]
[1740718355948,0.063,128.91,128.87,20.0]
[1740718356140,0.063,128.91,128.88,0.14216157]
[1740718356464,0.063,128.91,128.9,20.14216157]
[1740718356833,0.063,128.91,128.9,18.79181043]
[1740718357954,0.063,128.91,128.89,6.5978]
[1740718358157,0.063,128.91,128.89,0.14216157]
[1740718358361,0.063,128.91,128.9,20.14216157]
[1740718358571,1.0,128.94,128.9,20.14216157]
[1740718358572,1.0,128.94,128.93,20.14216157]
[1740718358856,0.063,129.0,128.94,0.14216157]
[1740718359082,0.063,129.0,128.98,20.0]
[1740718359264,0.063,129.0,128.99,20.14216157]
[1740718360166,0.063,129.0,128.98,20.0]
[1740718360459,0.063,129.0,128.99,0.14216157]
[1740718360846,0.063,129.0,128.99,20.14216157]
[1740718361165,0.063,129.0,128.99,38.79181043]
[1740718362542,0.063,129.0,128.99,0.14216157]
[1740718363660,0.063,129.0,128.99,38.79181043]
[1740718364053,0.063,129.0,128.99,40.4189619]
[1740718364257,0.063,129.0,128.99,38.79181043]
[1740718364645,0.063,129.0,128.99,40.4190842]
[1740718365367,0.063,129.0,128.96,0.14216157]
[1740718365566,0.063,129.0,128.96,1.76960783]
[1740718365874,0.063,129.0,128.99,20.14216157]
[1740718366066,0.063,129.0,128.99,38.79181043]
[1740718366745,0.063,129.03,129.02,38.79181043]
[1740718366939,0.063,129.03,129.02,50.77846558]
[1740718367264,0.063,129.03,129.02,30.50216157]
[1740718367856,0.063,129.03,129.02,49.15181043]
[1740718368246,0.063,129.03,129.02,187.27853152]